[Event "LTU-chT 2019"]
[Site "Lithuania"]
[Date "2019.04.27"]
[Round "6.5"]
[White "Brazdzionis, Andrius"]
[Black "Steponavicius, Stasys"]
[Result "1-0"]
[ECO "E12"]
[WhiteElo "2311"]
[BlackElo "2194"]
[Annotator "NA"]
[PlyCount "169"]
[EventDate "2019.01.26"]
[EventType "team-tourn"]
[EventCountry "LTU"]
[SourceTitle "playchess.com"]
[Source "ChessBase"]
[SourceQuality "1"]
[TimeControl "40/5400+30:1800+30"]

1. d4 {[%emt 0:00:00]} Nf6 {[%emt 0:00:00]} 2. c4 {[%emt 0:00:00]} e6 {[%emt 0:00:00]} 3. Nf3 {[%emt 0:00:01]} b6 {[%emt 0:00:12]} 4. a3 {[%emt 0:00:07]} c6 {[%emt 0:02:03]} (4... Bb7 5. Nc3 Ne4 6. Nxe4 Bxe4 7. Nd2 Bb7 8. e4 g6 9. Bd3 Bg7 10. Nf3 O-O 11. O-O d6 12. Rb1 Nd7 13. Bg5 Qc8 14. Re1 Re8 15. Qd2 c5 16. d5 exd5 17. exd5 Qc7 {½-½ (39) Fedoseev,V (2724)-Rapport,R (2731) Wijk aan Zee 2019}) 5. Nc3 {[%emt 0:00:23]} d5 {[%emt 0:00:08]} 6. Qc2 {[%emt 0:04:31] E12: Queen's Indian: Unusual White 4th moves, 4 a3, 4 Nc3 Bb7 5 a3 and 4 Nc3 Bb7} Be7 {[%emt 0:05:31]} 7. e4 {[%emt 0:01:23]} dxe4 {[%emt 0:02:50]} 8. Nxe4 {[%emt 0:00:06]} Nxe4 $146 {[%emt 0:00:18]} ({Predecessor:} 8... Nbd7 9. Bd3 Bb7 10. O-O Nxe4 11. Bxe4 Nf6 12. Bd3 O-O {1-0 (48) Notkin,M (2485)-Kurcubic,A (2270) Tivat 1995}) 9. Qxe4 {[%emt 0:00:02]} Bb7 {[%emt 0:00:14]} 10. Bf4 {[%emt 0:03:01]} Nd7 {[%emt 0:01:41]} 11. Rd1 {[%emt 0:03:24]} Nf6 {[%emt 0:01:39]} 12. Qc2 {[%emt 0:00:18]} Bd6 {[%emt 0:10:02]} 13. Bg3 {[%emt 0:06:35]} O-O {[%emt 0:10:27]} 14. Bd3 {[%emt 0:00:55]} h6 {[%emt 0:00:41]} 15. O-O {[%emt 0:00:31]} Qc7 {[%emt 0:03:45]} 16. c5 {[%emt 0:03:54]} Bxg3 {[%emt 0:03:31]} 17. hxg3 {[%emt 0:00:23]} a5 {[%emt 0:00:29]} 18. Qe2 {[%emt 0:00:07]} a4 {[%emt 0:09:27]} 19. Rc1 {[%emt 0:01:35]} Rfd8 {[%emt 0:05:47]} 20. Rfd1 {[%emt 0:04:27]} Ra5 {[%emt 0:09:09]} 21. Qe5 {[%emt 0:24:06]} Qc8 {[%emt 0:10:09]} 22. Qe1 {[%emt 0:00:19]} Qc7 {[%emt 0:02:30]} 23. cxb6 {[%emt 0:00:22]} Qxb6 {[%emt 0:00:14]} 24. Rc5 {[%emt 0:00:03]} Rd5 {[%emt 0:05:50]} ({Black should try} 24... Rda8 $11) 25. Qb4 {[%emt 0:09:59]} (25. Qxa5 $14 Qxa5 26. Rxa5 Rxa5 27. Ne5) 25... Qxb4 {[%emt 0:02:13]} 26. axb4 {[%emt 0:00:08]} Ra8 {[%emt 0:00:10]} 27. Bc4 {[%emt 0:05:50]} Rdd8 {[%emt 0:07:00]} 28. Ra1 {[%emt 0:04:55]} Nd7 {[%emt 0:02:42]} 29. Ra5 {[%emt 0:00:08]} Nb6 {[%emt 0:00:06]} 30. Bd3 {[%emt 0:08:59]} Kf8 {[%emt 0:03:01]} 31. Bc2 {[%emt 0:06:59]} Nc4 {[%emt 0:02:00]} 32. R5xa4 {[%emt 0:00:04]} Nxb2 {[%emt 0:00:25]} 33. Ra7 {[%emt 0:00:05]} Nc4 {[%emt 0:00:50]} 34. Ne5 {[%emt 0:02:37]} Rxa7 {[%emt 0:00:50]} 35. Rxa7 {[%emt 0:00:11]} Rxd4 {[%emt 0:00:21]} 36. Nxf7 {[%emt 0:04:36]} Kxf7 {[%emt 0:00:53]} 37. Rxb7+ {[%emt 0:00:05]} Kf6 {[%emt 0:00:06]} 38. Rc7 {[%emt 0:02:30]} Ne5 {[%emt 0:00:57]} 39. f4 {[%emt 0:01:27]} Ng4 {[%emt 0:00:24]} 40. Rxc6 {[%emt 0:00:18]} Rxb4 {[%emt 0:00:48]} 41. f5 {[%emt 0:30:52]} Rb2 {[%emt 0:02:05]} 42. Rxe6+ {[%emt 0:00:00]} Kf7 {[%emt 0:01:51]} 43. Bd3 {[%emt 0:00:00]} Rb4 {[%emt 0:12:13]} 44. Kf1 {[%emt 0:00:00]} Nf6 {[%emt 0:03:03]} 45. Kf2 {[%emt 0:00:00]} g6 {[%emt 0:01:00]} 46. Ra6 {[%emt 0:00:00]} Ng4+ {[%emt 0:03:06]} 47. Ke1 {[%emt 0:00:00]} gxf5 {[%emt 0:02:16]} 48. Bxf5 {[%emt 0:00:00]} Ne3 {[%emt 0:01:27]} 49. Be6+ {[%emt 0:00:00]} Kg7 {[%emt 0:00:35]} 50. Kf2 {[%emt 0:00:00]} Ng4+ {[%emt 0:00:53]} 51. Ke2 {[%emt 0:00:00]} Ne5 {[%emt 0:02:04]} 52. Bd5 {[%emt 0:00:00]} Rd4 {[%emt 0:01:15]} 53. Bf3 {[%emt 0:00:00]} Rb4 {[%emt 0:01:17]} 54. Re6 {[%emt 0:00:00]} Nf7 {[%emt 0:01:03]} 55. Ke3 {[%emt 0:00:00]} Rb3+ {[%emt 0:01:05]} 56. Ke2 {[%emt 0:00:00]} Rb5 {[%emt 0:00:39]} 57. Ra6 {[%emt 0:00:00]} Rb2+ {[%emt 0:00:16]} 58. Ke3 {[%emt 0:00:00]} Rb4 {[%emt 0:00:22]} 59. Be4 $11 {[%emt 0:00:00]} Rb5 {[%emt 0:02:07]} 60. g4 {[%emt 0:00:45]} Rc5 {[%emt 0:00:54]} 61. Kd4 {[%emt 0:01:05]} Rg5 {[%emt 0:00:42]} 62. Bf5 {[%emt 0:02:01]} h5 {[%emt 0:00:21]} 63. Ra7 {[%emt 0:00:19]} Kf6 {[%emt 0:00:27]} 64. Ke4 {[%emt 0:00:25]} hxg4 {[%emt 0:00:24]} 65. Ra6+ {[%emt 0:00:04]} Ke7 {[%emt 0:00:26]} 66. Kf4 {[%emt 0:00:13]} Rg8 {[%emt 0:00:26]} 67. Re6+ {[%emt 0:00:34]} Kf8 {[%emt 0:00:19]} 68. Bxg4 {[%emt 0:00:36]} Kg7 {[%emt 0:00:53]} 69. Bh5 {[%emt 0:01:35]} Nd8 {[%emt 0:00:50]} 70. Rd6 {[%emt 0:01:00]} Rf8+ {[%emt 0:00:26]} 71. Kg4 {[%emt 0:01:12]} Kg8 {[%emt 0:00:10]} 72. Kh4 {[%emt 0:00:46]} Kh8 {[%emt 0:00:16]} 73. g3 {[%emt 0:00:51]} Kg7 {[%emt 0:00:14]} 74. g4 {[%emt 0:00:40]} Rh8 {[%emt 0:00:32]} 75. g5 {[%emt 0:02:04]} Rf8 {[%emt 0:00:42]} 76. Rd7+ {[%emt 0:00:11]} Kg8 {[%emt 0:00:10]} 77. Bg4 {[%emt 0:00:52]} Re8 {[%emt 0:00:51]} 78. Kh5 {[%emt 0:00:22]} Nf7 {[%emt 0:00:42]} 79. Bf5 {[%emt 0:00:58]} Re5 {[%emt 0:00:47]} 80. Kg6 {[%emt 0:00:24]} Nh8+ {[%emt 0:00:39]} 81. Kf6 {[%emt 0:00:07]} Re8 {[%emt 0:00:19]} 82. Be6+ {[%emt 0:00:15]} Kf8 {[%emt 0:00:00]} 83. Rh7 {[%emt 0:00:23]} Ng6 {[%emt 0:00:54]} 84. Rf7+ {[%emt 0:00:06]} Kg8 {[%emt 0:00:05]} 85. Re7+ {[%emt 0:00:10]} 1-0

[Event "LTU-chT 2019"]
[Site "Lithuania"]
[Date "2019.04.27"]
[Round "6.7"]
[White "Klabis, Rokas"]
[Black "Shkapenko, Pavel"]
[Result "1/2-1/2"]
[ECO "B40"]
[WhiteElo "2320"]
[BlackElo "2432"]
[Annotator "ChessBase"]
[PlyCount "81"]
[EventDate "2019.01.26"]
[EventType "team-tourn"]
[EventCountry "LTU"]
[SourceTitle "playchess.com"]
[Source "ChessBase"]
[SourceQuality "1"]
[TimeControl "40/5400+30:1800+30"]

1. e4 {[%emt 0:00:00]} c5 {[%emt 0:00:00]} 2. Nf3 {[%emt 0:00:11]} e6 {[%emt 0:00:00]} 3. g3 {[%emt 0:00:34]} d5 {[%emt 0:00:54]} 4. exd5 {[%emt 0:00:21]} exd5 {[%emt 0:00:30]} 5. d4 {[%emt 0:01:05]} Nc6 {[%emt 0:09:50]} 6. Bg2 {[%emt 0:01:14]} Bg4 {[%emt 0:00:10]} 7. O-O {[%emt 0:08:09]} cxd4 {[%emt 0:06:30]} 8. Nbd2 {[%emt 0:04:46]} Nf6 {[%emt 0:04:40]} 9. Nb3 {[%emt 0:07:26]} Be7 {[%emt 0:00:09]} 10. Nbxd4 {[%emt 0:00:23]} O-O {[%emt 0:00:07]} 11. h3 {[%emt 0:00:34]} Bh5 {[%emt 0:01:00]} 12. c3 {[%emt 0:01:48]} Nxd4 {[%emt 0:07:59]} 13. Qxd4 {[%emt 0:07:37]} Bg6 {[%emt 0:08:26]} 14. Nh4 {[%emt 0:11:25]} Be4 {[%emt 0:00:13]} 15. Bg5 {[%emt 0:09:54]} h6 {[%emt 0:01:29]} 16. Be3 {[%emt 0:00:07]} Qd7 {[%emt 0:14:20]} 17. Rad1 {[%emt 0:05:36]} Bxg2 {[%emt 0:00:12]} 18. Kxg2 {[%emt 0:00:22]} Rfd8 {[%emt 0:08:18]} 19. Qe5 {[%emt 0:08:54]} Ne4 {[%emt 0:09:24]} 20. Nf5 {[%emt 0:05:52]} Bf6 {[%emt 0:01:04]} 21. Qf4 {[%emt 0:00:03]} Qe6 {[%emt 0:11:17]} 22. Bd4 {[%emt 0:03:39]} Bxd4 {[%emt 0:00:40]} 23. Rxd4 {[%emt 0:01:51]} Nf6 {[%emt 0:05:37]} 24. Rfd1 {[%emt 0:01:47]} Rd7 {[%emt 0:00:10]} 25. Qf3 {[%emt 0:06:17]} Rad8 {[%emt 0:00:41]} 26. Rf4 {[%emt 0:00:19]} Kh7 {[%emt 0:02:54]} 27. g4 {[%emt 0:04:13]} Ne4 {[%emt 0:00:55]} 28. Qd3 {[%emt 0:03:05]} g6 {[%emt 0:00:57]} 29. Nd4 {[%emt 0:00:04]} Qb6 {[%emt 0:00:29]} 30. Qe2 {[%emt 0:00:43]} Re8 {[%emt 0:00:59]} 31. Rd3 {[%emt 0:02:39]} Ree7 {[%emt 0:00:23]} 32. Re3 {[%emt 0:02:10]} Qc7 {[%emt 0:00:01]} 33. Rff3 {[%emt 0:00:05]} a6 {[%emt 0:00:54]} 34. Qd3 {[%emt 0:00:25]} Kg7 {[%emt 0:01:39]} 35. Re2 {[%emt 0:00:53]} Nc5 {[%emt 0:00:35]} 36. Qd2 {[%emt 0:00:29]} Re4 {[%emt 0:01:10]} 37. Rfe3 {[%emt 0:00:44]} Rde7 {[%emt 0:01:09]} 38. Nb3 {[%emt 0:01:26]} Rxe3 {[%emt 0:01:14]} 39. Rxe3 {[%emt 0:00:10]} Rxe3 {[%emt 0:00:18]} 40. Qxe3 {[%emt 0:00:16]} Ne6 {[%emt 0:00:14]} 41. Nd4 {[%emt 0:31:07]} 1/2-1/2

[Event "LTU-chT 2019"]
[Site "Lithuania"]
[Date "2019.04.27"]
[Round "6.8"]
[White "Vaznonis, Vytautas"]
[Black "Stauskas, Lukas"]
[Result "0-1"]
[ECO "A46"]
[WhiteElo "2388"]
[BlackElo "2357"]
[Annotator "NA"]
[PlyCount "90"]
[EventDate "2019.01.26"]
[EventType "team-tourn"]
[EventCountry "LTU"]
[SourceTitle "playchess.com"]
[Source "ChessBase"]
[SourceQuality "1"]
[TimeControl "40/5400+30:1800+30"]

1. d4 {[%emt 0:00:00]} Nf6 {[%emt 0:05:20]} 2. Nf3 {[%emt 0:00:00]} e6 {[%emt 0:00:16]} 3. e3 {[%emt 0:00:08]} b6 {[%emt 0:01:29]} 4. Bd3 {[%emt 0:00:09]} Bb7 {[%emt 0:00:10]} 5. b3 {[%emt 0:00:23]} c5 {[%emt 0:01:37]} 6. Bb2 {[%emt 0:00:49]} cxd4 {[%emt 0:03:03]} 7. exd4 {[%emt 0:00:25]} Be7 {[%emt 0:00:27]} 8. O-O {[%emt 0:00:28]} O-O {[%emt 0:00:26]} 9. c4 {[%emt 0:05:02]} d5 {[%emt 0:01:09]} 10. Ne5 {[%emt 0:08:50]} Nc6 {[%emt 0:04:42]} 11. Nd2 {[%emt 0:25:56]} dxc4 {[%emt 0:03:54]} 12. Nxc6 {[%emt 0:04:26]} Bxc6 {[%emt 0:00:06]} 13. bxc4 {[%emt 0:00:11]} Qd7 {[%emt 0:06:38] E14: Queen's Indian: Classical Variation (4 e3)} 14. Qe2 {[%emt 0:08:07]} Qb7 {[%emt 0:01:40]} (14... Rad8 15. f4 Rfe8 16. Nf3 Bxf3 17. Rxf3 Bf8 18. Qe5 g6 19. Qe2 Qc7 20. Bc2 Qc6 21. Rd1 {1-0 (58) Acosta,P (2409)-Munoz,F (2275) Montevideo 2017}) 15. f4 {[%emt 0:10:51]} Rfe8 {[%emt 0:05:29]} 16. Bc3 $146 {[%emt 0:09:34]} ({Predecessor:} 16. Nf3 Be4 17. Ne5 Bxd3 18. Qxd3 Red8 19. f5 exf5 20. Qxf5 Rac8 21. d5 {1-0 (34) Medic,M (2210)-Kalevic,S (2160) Kladovo 1990}) 16... Rac8 {[%emt 0:04:35]} 17. Rab1 {[%emt 0:04:53]} Qa8 {[%emt 0:01:56]} 18. Ba1 {[%emt 0:01:06]} Bf8 {[%emt 0:03:27]} 19. Rbe1 {[%emt 0:02:30]} g6 {[%emt 0:13:08]} 20. Nf3 {[%emt 0:01:12]} Bxf3 {[%emt 0:00:31]} 21. Rxf3 {[%emt 0:00:18]} Bg7 {[%emt 0:00:15]} 22. Bc2 {[%emt 0:02:39]} Red8 {[%emt 0:02:32]} 23. Rd1 {[%emt 0:01:47]} Qc6 {[%emt 0:04:12]} 24. Bb3 $1 {[%emt 0:00:41]} Qe4 {[%emt 0:01:45]} 25. Qd2 {[%emt 0:03:33]} Ne8 {[%emt 0:07:18]} 26. Rd3 {[%emt 0:06:47]} Nd6 {[%emt 0:03:49]} 27. c5 {[%emt 0:00:14]} bxc5 {[%emt 0:07:01]} 28. dxc5 {[%emt 0:00:20]} Nb7 {[%emt 0:00:03]} 29. Bxg7 {[%emt 0:02:29]} Rxd3 {[%emt 0:00:28]} 30. Qxd3 {[%emt 0:00:05]} Qxd3 {[%emt 0:00:08]} 31. Rxd3 {[%emt 0:00:07]} Nxc5 {[%emt 0:00:11]} 32. Rc3 {[%emt 0:01:25]} Kxg7 {[%emt 0:00:05]} 33. g4 {[%emt 0:00:32]} Kf6 {[%emt 0:04:23]} 34. Kg2 {[%emt 0:00:08]} Ke7 {[%emt 0:04:29]} 35. Kf3 {[%emt 0:00:31]} Kd6 {[%emt 0:00:26]} 36. f5 {[%emt 0:00:23]} Rb8 {[%emt 0:02:00]} 37. fxe6 {[%emt 0:00:40]} fxe6 {[%emt 0:00:15]} 38. Bc2 {[%emt 0:00:42]} e5 {[%emt 0:02:26]} 39. h4 {[%emt 0:00:25]} Rf8+ {[%emt 0:00:54]} 40. Kg3 {[%emt 0:00:07]} e4 {[%emt 0:01:29]} 41. g5 {[%emt 0:07:29]} Kd5 $19 {[%emt 0:02:09]} 42. Bb3+ {[%emt 0:01:06]} Nxb3 {[%emt 0:00:38]} 43. Rxb3 {[%emt 0:00:02]} Rf7 {[%emt 0:01:57]} 44. Rb8 {[%emt 0:04:35]} e3 {[%emt 0:04:35]} 45. a4 {[%emt 0:00:10]} Re7 {[%emt 0:00:58]} 0-1

[Event "LTU-chT 2019"]
[Site "Lithuania"]
[Date "2019.04.27"]
[Round "6.9"]
[White "Narmontas, Tauras"]
[Black "Juksta, Karolis"]
[Result "1-0"]
[ECO "A01"]
[WhiteElo "2244"]
[BlackElo "2285"]
[Annotator "NA"]
[PlyCount "107"]
[EventDate "2019.01.26"]
[EventType "team-tourn"]
[EventCountry "LTU"]
[SourceTitle "playchess.com"]
[Source "ChessBase"]
[SourceQuality "1"]
[TimeControl "40/5400+30:1800+30"]

1. b3 {[%emt 0:00:00]} d5 {[%emt 0:00:00]} 2. Bb2 {[%emt 0:00:00]} Bg4 {[%emt 0:00:20]} 3. h3 {[%emt 0:02:17]} Bh5 {[%emt 0:00:46]} 4. g4 {[%emt 0:04:09]} Bg6 {[%emt 0:00:08]} 5. Bg2 {[%emt 0:02:03]} e6 {[%emt 0:06:42]} (5... c6 6. f4 e6 7. Nf3 Nd7 8. e3 h5 9. g5 h4 10. d3 Ne7 11. O-O Nf5 12. Re1 Bc5 {1-0 (49) Batsiashvili,N (2482)-Javakhishvili,L (2475) Telavi 2018}) 6. c4 {[%emt 0:04:51] A01: Nimzowitsch-Larsen Opening} (6. Nf3 $11) 6... Nf6 $146 {[%emt 0:01:31]} ({Predecessor:} 6... c6 7. Nf3 Nd7 8. d3 f6 9. O-O h5 10. cxd5 cxd5 11. e4 hxg4 12. hxg4 {1-0 (57) Bryntze,S (2231)-Aroven,M (2099) Stockholm 2014}) 7. Nc3 {[%emt 0:12:09]} Nc6 {[%emt 0:06:26]} 8. cxd5 {[%emt 0:25:39]} exd5 {[%emt 0:00:45]} 9. Rc1 {[%emt 0:00:07]} h6 {[%emt 0:23:54]} 10. d3 {[%emt 0:02:10]} Be7 {[%emt 0:03:43]} 11. Nf3 {[%emt 0:08:16]} Qd7 {[%emt 0:06:28]} 12. a3 {[%emt 0:03:12]} a6 {[%emt 0:01:56]} 13. Na4 {[%emt 0:02:49]} O-O {[%emt 0:06:06]} 14. Qd2 {[%emt 0:00:25]} Rad8 {[%emt 0:06:34]} 15. O-O {[%emt 0:00:33]} Qe6 {[%emt 0:03:35]} 16. b4 {[%emt 0:01:38]} Nd7 {[%emt 0:02:49]} 17. Rc2 {[%emt 0:05:32]} Bh7 {[%emt 0:07:38]} (17... f5 $15) 18. Rfc1 {[%emt 0:00:35]} f6 {[%emt 0:00:38] [#]} 19. Rxc6 $1 {[%emt 0:02:06]} bxc6 {[%emt 0:00:05]} 20. Nd4 $1 {[%emt 0:00:02] Double Attack} Qf7 {[%emt 0:01:06]} 21. Rxc6 {[%emt 0:00:04]} Bd6 {[%emt 0:05:58]} 22. Nc3 {[%emt 0:00:02]} (22. Rxa6 $16 Nb8 23. Ra7) 22... Nb6 {[%emt 0:03:26]} 23. f4 {[%emt 0:02:02]} Kh8 {[%emt 0:01:28]} 24. f5 {[%emt 0:07:05]} Rfe8 {[%emt 0:00:33]} 25. Kf1 {[%emt 0:03:25]} Bg8 {[%emt 0:01:01]} 26. e3 {[%emt 0:01:51]} Qe7 {[%emt 0:03:19]} 27. Kf2 {[%emt 0:00:01]} Be5 {[%emt 0:02:17]} 28. Nce2 {[%emt 0:00:07]} Rd6 {[%emt 0:00:37]} 29. Rc2 {[%emt 0:01:47]} Qd7 {[%emt 0:01:30]} 30. Qc1 {[%emt 0:02:54]} Rc8 {[%emt 0:00:50]} 31. Ba1 {[%emt 0:01:06]} Na4 {[%emt 0:01:02]} 32. Nf4 {[%emt 0:01:03]} Bf7 {[%emt 0:01:10]} 33. h4 {[%emt 0:02:49]} c6 {[%emt 0:01:19]} 34. Bh3 {[%emt 0:01:13]} Qb7 {[%emt 0:00:47]} 35. g5 {[%emt 0:00:23]} Qb6 {[%emt 0:00:22]} 36. Nfe6 {[%emt 0:00:42]} Bxe6 {[%emt 0:00:22]} 37. fxe6 {[%emt 0:00:19]} Qc7 {[%emt 0:00:31]} 38. gxh6 {[%emt 0:01:22]} gxh6 {[%emt 0:00:14]} 39. Ne2 {[%emt 0:01:35]} Qg7 {[%emt 0:00:53]} 40. d4 {[%emt 0:00:19]} Rf8 {[%emt 0:00:38]} 41. Rxc6 {[%emt 0:30:20]} Rxc6 {[%emt 0:05:58]} 42. Qxc6 {[%emt 0:00:00]} Bb8 {[%emt 0:00:31]} 43. Qxa4 {[%emt 0:00:00]} f5 {[%emt 0:02:29]} 44. Qd7 {[%emt 0:00:00]} Qg6 {[%emt 0:04:11]} 45. Qxd5 {[%emt 0:00:00]} Qh5 {[%emt 0:03:11]} 46. Qf3 {[%emt 0:00:00]} Qxh4+ {[%emt 0:00:23]} 47. Kf1 {[%emt 0:00:00]} Qf6 {[%emt 0:01:08]} 48. Bc3 {[%emt 0:00:00]} Kh7 {[%emt 0:00:52]} 49. d5 {[%emt 0:00:00]} Be5 {[%emt 0:00:07]} 50. Bd4 {[%emt 0:00:00]} Bxd4 {[%emt 0:02:55]} 51. exd4 {[%emt 0:00:00]} Kh8 {[%emt 0:03:21]} 52. Qe3 {[%emt 0:00:00]} f4 $18 {[%emt 0:02:30]} 53. Qe5 {[%emt 0:00:00]} Kg7 {[%emt 0:00:27]} 54. d6 {[%emt 0:00:00]} 1-0

[Event "LTU-chT 2019"]
[Site "Lithuania"]
[Date "2019.04.27"]
[Round "6.10"]
[White "Baliasnyj, Timur"]
[Black "Muningis, Paulius"]
[Result "1-0"]
[ECO "A21"]
[WhiteElo "2217"]
[BlackElo "2146"]
[Annotator "NA"]
[PlyCount "74"]
[EventDate "2019.01.26"]
[EventType "team-tourn"]
[EventCountry "LTU"]
[SourceTitle "playchess.com"]
[Source "ChessBase"]
[SourceQuality "1"]
[TimeControl "40/5400+30:1800+30"]

1. c4 {[%emt 0:00:03]} e5 {[%emt 0:08:13]} 2. Nc3 {[%emt 0:01:24]} d6 {[%emt 0:03:42]} 3. g3 {[%emt 0:01:14]} g6 {[%emt 0:03:52]} 4. Bg2 {[%emt 0:00:10]} Bg7 {[%emt 0:01:02]} 5. Nf3 {[%emt 0:00:14]} f5 {[%emt 0:11:12]} 6. d3 {[%emt 0:01:22]} Nf6 {[%emt 0:02:37]} 7. O-O {[%emt 0:01:13]} O-O {[%emt 0:06:09]} 8. Rb1 {[%emt 0:27:38]} Kh8 {[%emt 0:11:11]} 9. b4 {[%emt 0:04:05]} Ng4 {[%emt 0:13:58]} 10. Qc2 {[%emt 0:15:13]} Nc6 {[%emt 0:05:09]} 11. Nd5 {[%emt 0:10:18]} e4 {[%emt 0:04:46]} 12. Ne1 {[%emt 0:19:53]} Nd4 {[%emt 0:04:58]} 13. Qd1 {[%emt 0:00:04]} c6 {[%emt 0:00:47]} 14. Ne3 $15 {[%emt 0:01:19]} (14. Nf4 $11) 14... f4 {[%emt 0:05:27]} 15. N3c2 {[%emt 0:00:44]} fxg3 {[%emt 0:02:13]} 16. hxg3 {[%emt 0:01:36]} Nxc2 {[%emt 0:04:10]} 17. Nxc2 {[%emt 0:03:08]} exd3 {[%emt 0:00:35]} 18. exd3 {[%emt 0:00:35]} Bf5 {[%emt 0:03:20]} 19. Ne3 {[%emt 0:00:37]} Nxe3 {[%emt 0:00:33]} 20. Bxe3 {[%emt 0:00:10]} Qd7 {[%emt 0:00:12]} 21. Qd2 {[%emt 0:04:09]} Rae8 {[%emt 0:01:47]} 22. Rfe1 {[%emt 0:01:01]} a6 {[%emt 0:00:20]} 23. a4 {[%emt 0:01:11]} d5 {[%emt 0:01:12]} 24. cxd5 {[%emt 0:00:49]} cxd5 {[%emt 0:00:17]} 25. Bc5 {[%emt 0:00:19]} Rg8 {[%emt 0:01:52]} 26. a5 {[%emt 0:00:37]} Bf6 {[%emt 0:00:43]} 27. Rbd1 {[%emt 0:00:42]} Kg7 {[%emt 0:00:44]} 28. Rc1 {[%emt 0:01:03]} Rxe1+ {[%emt 0:01:29]} 29. Rxe1 {[%emt 0:00:12]} h5 {[%emt 0:00:32]} 30. Qe3 {[%emt 0:00:45]} d4 {[%emt 0:01:07]} 31. Qf3 {[%emt 0:01:27]} Qb5 {[%emt 0:00:32]} 32. Be7 {[%emt 0:00:55]} Qxd3 {[%emt 0:00:34]} 33. Bxf6+ {[%emt 0:00:41]} Kxf6 {[%emt 0:00:05]} 34. Qxb7 {[%emt 0:00:27]} Rg7 {[%emt 0:01:00]} 35. Qb8 {[%emt 0:00:33]} Rd7 {[%emt 0:00:32]} 36. Qe5+ {[%emt 0:01:05]} Kg5 {[%emt 0:00:37]} 37. Bc6 {[%emt 0:00:43]} Qd2 1-0

[Event "LTU-chT 2019"]
[Site "Lithuania"]
[Date "2019.04.28"]
[Round "7.1"]
[White "Klabis, Rokas"]
[Black "Chocenka, Dmitrijus"]
[Result "0-1"]
[ECO "B90"]
[WhiteElo "2320"]
[BlackElo "2287"]
[Annotator "NA"]
[PlyCount "108"]
[EventDate "2019.01.26"]
[EventType "team-tourn"]
[EventCountry "LTU"]
[SourceTitle "playchess.com"]
[Source "ChessBase"]
[SourceQuality "1"]
[TimeControl "40/5400+30:1800+30"]

1. e4 {[%emt 0:00:00]} c5 {[%emt 0:00:00]} 2. Nf3 {[%emt 0:00:00]} d6 {[%emt 0:00:00]} 3. d4 {[%emt 0:00:01]} cxd4 {[%emt 0:00:02]} 4. Nxd4 {[%emt 0:00:04]} Nf6 {[%emt 0:00:07]} 5. Nc3 {[%emt 0:00:03]} a6 {[%emt 0:00:05]} 6. Nb3 {[%emt 0:00:04]} e5 {[%emt 0:03:51]} 7. Bg5 {[%emt 0:00:18]} Be6 {[%emt 0:01:19]} 8. Bxf6 {[%emt 0:04:09]} gxf6 {[%emt 0:02:32]} 9. g3 {[%emt 0:02:41]} Nd7 {[%emt 0:05:42]} 10. h4 {[%emt 0:04:00]} Rc8 {[%emt 0:08:37]} 11. Bh3 {[%emt 0:02:15]} Nc5 {[%emt 0:05:47]} ({Black should try} 11... Nb6 $14) 12. Bxe6 {[%emt 0:05:02]} (12. Qf3 $16) 12... fxe6 {[%emt 0:00:11]} 13. Qh5+ {[%emt 0:00:21]} Kd7 {[%emt 0:00:13]} 14. O-O-O {[%emt 0:01:36]} Nxb3+ {[%emt 0:03:40]} 15. axb3 {[%emt 0:00:04]} Kc7 {[%emt 0:01:50]} 16. f4 $16 {[%emt 0:00:10]} Kb8 {[%emt 0:06:38]} 17. f5 {[%emt 0:03:24]} Qa5 {[%emt 0:05:09]} 18. Kb1 {[%emt 0:10:53]} d5 {[%emt 0:10:45]} 19. fxe6 {[%emt 0:02:32]} Rxc3 {[%emt 0:06:09]} 20. bxc3 {[%emt 0:33:37]} Ba3 {[%emt 0:00:14]} 21. b4 {[%emt 0:00:09]} Bxb4 {[%emt 0:00:50]} 22. Rxd5 {[%emt 0:03:18]} Bc5 {[%emt 0:04:08]} 23. e7 {[%emt 0:02:02]} Qb6+ {[%emt 0:02:39]} 24. Kc1 {[%emt 0:00:28]} Bxe7 {[%emt 0:00:25]} 25. Qf3 {[%emt 0:02:43]} Rc8 {[%emt 0:01:28]} 26. Kd2 {[%emt 0:02:24]} Ba3 {[%emt 0:03:52]} 27. Rf1 {[%emt 0:01:46]} Rc6 {[%emt 0:04:50]} 28. Qf2 {[%emt 0:02:36]} Qb2 {[%emt 0:06:21]} 29. Rd8+ {[%emt 0:01:33]} Kc7 {[%emt 0:00:05]} 30. Rd3 {[%emt 0:00:04]} Bf8 {[%emt 0:05:43]} 31. Qe3 {[%emt 0:03:39]} a5 {[%emt 0:00:30]} 32. g4 {[%emt 0:01:21]} a4 {[%emt 0:01:08]} 33. g5 {[%emt 0:00:12]} a3 {[%emt 0:00:42]} 34. Qh3 {[%emt 0:03:28]} Bd6 {[%emt 0:04:32]} 35. gxf6 {[%emt 0:06:19]} a2 {[%emt 0:03:44]} 36. f7 {[%emt 0:01:53]} a1=Q {[%emt 0:02:27]} 37. f8=Q {[%emt 0:01:37]} Bxf8 {[%emt 0:00:12]} 38. Qd7+ {[%emt 0:00:04]} Kb6 {[%emt 0:00:16]} 39. Qd8+ {[%emt 0:00:07]} Kb5 {[%emt 0:02:09]} 40. c4+ {[%emt 0:01:42]} Rxc4 {[%emt 0:00:26]} 41. Qd5+ {[%emt 0:03:24]} Kb6 {[%emt 0:02:30]} 42. Qd8+ {[%emt 0:04:14]} Rc7 {[%emt 0:02:46]} 43. Qf6+ {[%emt 0:06:14]} Kb5 {[%emt 0:01:12]} 44. Rd5+ {[%emt 0:00:45]} Bc5 {[%emt 0:00:58]} 45. Rxa1 {[%emt 0:00:37]} Qxa1 {[%emt 0:00:05]} 46. Qd8 {[%emt 0:00:35]} Qa5+ {[%emt 0:02:13]} 47. Kd3 {[%emt 0:00:06]} Kb4 {[%emt 0:02:24]} 48. Qg5 {[%emt 0:03:46]} Qa6+ {[%emt 0:02:13]} 49. Kd2 {[%emt 0:00:08]} Bd4 {[%emt 0:00:20]} 50. Qg3 {[%emt 0:01:47]} Rc3 {[%emt 0:05:05]} 51. Qg7 {[%emt 0:01:20]} Rxc2+ {[%emt 0:01:38]} 52. Kxc2 {[%emt 0:00:06]} Qe2+ {[%emt 0:00:03]} 53. Kc1 {[%emt 0:00:09]} Qe1+ {[%emt 0:00:08]} 54. Kc2 {[%emt 0:00:05]} Qxe4+ {[%emt 0:00:05]} 0-1